[Event "EYTCC Open U18 2022"]
[Site "Thessaloniki"]
[Date "2022.07.18"]
[Round "7.29"]
[White "Magalakis, Stefanos"]
[Black "Ratnesan, Ranesh"]
[Result "1/2-1/2"]
[ECO "A48"]
[WhiteElo "2181"]
[BlackElo "2269"]
[Annotator "TA"]
[PlyCount "115"]
[EventDate "2022.07.12"]
[EventType "team-tourn"]
[EventCountry "GRE"]
[SourceTitle "playchess.com"]
[Source "ChessBase"]
[SourceQuality "1"]
[WhiteTeam "Greece"]
[BlackTeam "England"]
[WhiteTeamCountry "GRE"]
[BlackTeamCountry "ENG"]
[TimeControl "40/5400+30:1800+30"]

{[%evp 15,115,0,0,0,0,0,0,0,0,0,0,0,0,0,6,6,18,0,0,0,0,-8,0,-40,-48,-40,-13,-47,-19,-22,-29,-95,-99,-124,-21,-15,-16,-15,-8,-17,-12,-17,-16,-16,-15,-16,-18,-48,-52,-49,-48,-314,0,0,0,-419,-409,-409,-409,-393,-319,-1338,-1193,-29977,0,0,0,0,0,0,0,0,0,0,0,0,0,0,0,0,0,0,0,0,0,0,0,0,0,0,0,0,0,0,0,0,0,0,0,0,0,0]} 1. d4 {[%emt 0:00:07]} Nf6 {[%emt 0:00:06]} 2. Nf3 {[%emt 0:00:06]} g6 {[%emt 0:00:07]} 3. Bg5 {[%emt 0:00:38]} Bg7 {[%emt 0:00:08]} 4. Nbd2 {[%emt 0:00:07]} O-O {[%emt 0:00:07]} 5. c3 {[%emt 0:00:05]} h6 {[%emt 0:00:19]} 6. Bh4 {[%emt 0:00:06]} d6 {[%emt 0:00:11]} 7. e4 {[%emt 0:01:51]} c5 {[%emt 0:00:15]} 8. dxc5 {[%emt 0:00:07]} dxc5 {[%emt 0:00:06]} 9. Qc2 {[%emt 0:00:16] A48: 1 d4 Nf6 2 Nf3 g6: Torre, London and Colle Systems.} Nc6 {[%emt 0:02:07]} 10. Be2 {[%emt 0:00:25]} Nh5 {[%emt 0:03:48]} 11. O-O {[%emt 0:04:49]} Qc7 {[%emt 0:05:22] is the legacy move (11...Nf4).} 12. Nc4 {[%emt 0:06:08] The modern move.} g5 {[%emt 0:13:08]} 13. Bg3 {[%emt 0:01:30]} Nxg3 {[%emt 0:00:07]} 14. hxg3 {[%emt 0:00:07]} b5 {[%emt 0:05:55]} 15. Ne3 {[%emt 0:01:08]} Rb8 {[%emt 0:01:05]} 16. a4 {[%emt 0:09:18] Hoping for Nd5.} a6 {[%emt 0:00:17]} 17. axb5 {[%emt 0:07:42]} axb5 {[%emt 0:00:06]} 18. Nh2 {[%emt 0:09:18]} c4 {[%emt 0:08:40]} 19. Kh1 {[%emt 0:16:39] [#]} e6 $146 {[%emt 0:04:38]} ({Predecessor:} 19... Qb6 20. Qc1 Na5 21. Nd5 Qd8 22. Rxa5 e6 23. Nb4 Qxa5 24. Nc6 Qc7 25. Nxb8 Qxb8 {½-½ (48) Ghosh,D (2538)-Puranik,A (2608) chess24.com INT 2022}) 20. f4 {[%emt 0:11:57]} Qb6 {[%emt 0:01:13]} 21. Qc1 {[%emt 0:01:55]} f5 {[%emt 0:03:56]} 22. exf5 {[%emt 0:07:59]} exf5 {[%emt 0:00:12]} 23. g4 {[%emt 0:08:27] [#]} (23. Bh5 $11 {keeps the balance.}) 23... Re8 $1 $17 {[%emt 0:10:45]} 24. Bf3 {[%emt 0:02:16]} Qxe3 {[%emt 0:03:16]} (24... Rxe3 $17 25. Bxc6 fxg4) 25. Bxc6 $11 {[%emt 0:00:40]} Qxc1 {[%emt 0:01:06]} 26. Raxc1 {[%emt 0:00:59]} Rf8 {[%emt 0:02:17]} 27. fxg5 {[%emt 0:02:24]} hxg5 {[%emt 0:05:44]} 28. Nf3 {[%emt 0:01:06]} Rb6 {[%emt 0:04:33]} 29. Bd5+ {[%emt 0:00:19]} Be6 {[%emt 0:00:06]} 30. Bxe6+ {[%emt 0:01:33]} Rxe6 {[%emt 0:00:06]} 31. Nxg5 {[%emt 0:04:59]} Rg6 $36 {[%emt 0:00:49][%mdl 2048] Black is pushing.} 32. Nf3 {[%emt 0:00:44]} fxg4 {[%emt 0:02:12]} 33. Nd4 {[%emt 0:00:16][%mdl 8192]} ({White must play} 33. Nh4 $1 $15 Re6 34. Rxf8+ Bxf8 35. Nf5) 33... b4 $2 {[%emt 0:10:50]} ({Black should try} 33... Rxf1+ $19 34. Rxf1 Bxd4 35. cxd4 g3) 34. Rxf8+ {[%emt 0:00:25]} Kxf8 {[%emt 0:00:12]} 35. g3 $2 {[%emt 0:00:24][%mdl 8192]} (35. Nf5 $11 {and White has nothing to worry.}) 35... Bxd4 $19 {[%emt 0:03:44]} 36. cxd4 {[%emt 0:00:01][%mdl 4096] Endgame [#] KR-KR} Rc6 {[%emt 0:00:08]} 37. Re1 {[%emt 0:01:13]} c3 {[%emt 0:01:37] Threatens to win with ...c2.} 38. bxc3 {[%emt 0:00:04]} ({Don't blunder} 38. Rf1+ $2 Ke7 39. bxc3 Rxc3 $19) (38. d5 Rc4 39. bxc3 bxc3 40. d6) 38... Rxc3 {[%emt 0:00:24]} 39. Re5 {[%emt 0:01:11]} Rxg3 $2 {[%emt 0:01:55]} (39... Rc1+ {mates} 40. Kg2 b3 41. Kf2 b2 42. Rb5 b1=Q 43. Rxb1 Rxb1 44. Ke3 Rf1 45. d5 Rf3+ 46. Ke4 Ke8 47. d6 Kd8 48. d7 Kxd7 49. Ke5 Ke7 50. Ke4 Kd6 51. Kd4 Rxg3 52. Ke4 Ra3 53. Kd4 g3 54. Kc4 g2 55. Kb4 Rf3 56. Ka5 g1=Q 57. Kb5 Ra3 58. Kc4 Qc5#) 40. Rb5 $11 {[%emt 0:00:00] The position is equal.} b3 {[%emt 0:00:00]} 41. Rb7 $1 {[%emt 0:00:20]} Ke8 {[%emt 0:05:25] ...Kd8 is the strong threat.} 42. d5 {[%emt 0:01:28]} Kd8 {[%emt 0:02:04] And now ...Kc8 would win.} ({Avoid the trap} 42... Rd3 $2 43. Kg2 $19) 43. d6 {[%emt 0:00:37]} Kc8 {[%emt 0:05:24]} 44. d7+ {[%emt 0:00:15]} Kd8 {[%emt 0:00:05]} 45. Kh2 {[%emt 0:00:09]} Rd3 {[%emt 0:00:19]} 46. Kg2 {[%emt 0:00:56]} Rh3 {[%emt 0:01:15]} 47. Kg1 {[%emt 0:00:54]} Rd3 {[%emt 0:00:46] aiming for ...Rd1+.} 48. Kg2 {[%emt 0:00:05]} Ke7 {[%emt 0:02:15]} 49. Kh2 {[%emt 0:00:29]} Kf6 {[%emt 0:00:36]} 50. d8=R {[%emt 0:00:20]} Rxd8 {[%emt 0:00:08]} 51. Rxb3 {[%emt 0:00:04]} Kg5 {[%emt 0:00:06]} 52. Kg3 {[%emt 0:00:08]} Rf8 {[%emt 0:00:17]} 53. Rb5+ {[%emt 0:00:38]} Rf5 {[%emt 0:00:05]} 54. Rxf5+ {[%emt 0:00:09]} Kxf5 {[%emt 0:00:03]} 55. Kg2 {[%emt 0:00:05]} Kf4 {[%emt 0:00:05]} 56. Kf2 {[%emt 0:00:04]} g3+ {[%emt 0:00:07]} 57. Kg2 {[%emt 0:00:03]} Ke5 {[%emt 0:00:13]} (57... Kg4 $5) 58. Kxg3 {[%emt 0:00:04] Whites escaped into a draw.  Weighted Error Value: White=0.45/Black=0.20 (precise)} 1/2-1/2

[Event "EYTCC Open U18 2022"]
[Site "Thessaloniki"]
[Date "2022.07.18"]
[Round "7.30"]
[White "Stoica, Savas Marin"]
[Black "Georgiadis, Athanasios Kat"]
[Result "1-0"]
[ECO "A50"]
[WhiteElo "2092"]
[BlackElo "1689"]
[Annotator "TA"]
[PlyCount "71"]
[EventDate "2022.07.12"]
[EventType "team-tourn"]
[EventCountry "GRE"]
[SourceTitle "playchess.com"]
[Source "ChessBase"]
[SourceQuality "1"]
[WhiteTeam "England"]
[BlackTeam "Greece"]
[WhiteTeamCountry "ENG"]
[BlackTeamCountry "GRE"]
[TimeControl "40/5400+30:1800+30"]

{[%evp 12,71,27,28,26,19,32,23,16,0,0,0,0,0,95,10,26,0,0,-25,0,0,0,0,0,0,62,62,83,89,94,85,110,100,102,100,147,136,131,108,154,86,93,95,131,76,79,71,200,204,200,201,204,201,197,202,357,327,531,527,627,616]} 1. d4 {[%emt 0:00:27]} Nf6 {[%emt 0:00:02]} 2. c4 {[%emt 0:00:10]} g6 {[%emt 0:00:06]} 3. h4 {[%emt 0:00:06]} Bg7 {[%emt 0:01:37]} 4. Nc3 {[%emt 0:00:06]} O-O {[%emt 0:00:48]} 5. e4 {[%emt 0:00:03]} d6 {[%emt 0:00:06]} 6. Be2 {[%emt 0:00:03]} h5 {[%emt 0:01:44]} 7. Bg5 {[%emt 0:00:06]} c5 {[%emt 0:05:25] E73: King's Indian: Averbakh Variation without 6...c5.} 8. d5 {[%emt 0:02:41]} Qa5 {[%emt 0:02:58] [#] White must now prevent ...Nxe4.} 9. Bd2 {[%emt 0:03:46] [#]} e6 $146 {[%emt 0:03:03] White has an edge.} ({Predecessor:} 9... Na6 10. Qc1 Kh7 11. Nf3 Ng4 12. Ng5+ Kg8 13. Bxg4 Bxg4 14. f3 Bd7 15. a3 Qd8 {1-0 (28) De Santis,A (2268)-Santurbano,M Verona 2005}) 10. Nh3 {[%emt 0:09:01]} exd5 {[%emt 0:05:19]} 11. cxd5 {[%emt 0:05:21]} Bxh3 {[%emt 0:05:35]} 12. Rxh3 {[%emt 0:00:05]} a6 {[%emt 0:00:06] [#]} (12... Nbd7 $11 {keeps the balance.}) 13. Qc2 {[%emt 0:06:16]} (13. g4 $1 $16 {[%cal Rg4h5]}) 13... Re8 {[%emt 0:06:04]} 14. Kf1 {[%emt 0:02:07]} Nbd7 {[%emt 0:02:08]} 15. g3 {[%emt 0:05:53]} Rab8 {[%emt 0:03:06][%cal Oc5c4]} 16. a4 {[%emt 0:02:05][%cal Oc3b5]} Ne5 {[%emt 0:07:33]} 17. f3 {[%emt 0:02:51]} Qd8 {[%emt 0:01:49]} 18. Kg2 {[%emt 0:00:42]} Qd7 {[%emt 0:00:49]} (18... c4 $11) 19. a5 $14 {[%emt 0:01:02]} Qc7 {[%emt 0:03:22]} 20. Rhh1 {[%emt 0:10:56]} Rf8 {[%emt 0:22:51]} 21. Nd1 {[%emt 0:07:03]} Rbe8 {[%emt 0:01:57]} 22. Re1 {[%emt 0:02:14]} Qd7 {[%emt 0:01:10]} 23. Nf2 {[%emt 0:00:16]} Qc7 {[%emt 0:08:25]} (23... Rc8 $142) 24. Rab1 {[%emt 0:09:33]} Rc8 {[%emt 0:06:26]} 25. Bc3 {[%emt 0:00:53]} Rfe8 {[%emt 0:01:30]} (25... Qd7 $142) 26. Rh1 {[%emt 0:04:50]} (26. f4 $142 Ned7 27. Bf3) 26... Qd7 {[%emt 0:00:53]} 27. Rbe1 {[%emt 0:00:15]} Rb8 {[%emt 0:02:23]} 28. f4 {[%emt 0:11:54]} ({Better is} 28. b3) 28... Neg4 $16 {[%emt 0:00:18]} 29. Nxg4 {[%emt 0:00:06]} hxg4 {[%emt 0:05:04] This move loses the game for Black.} (29... Nxg4 $16 {was worth a try.} 30. Bxg4 Qxg4) 30. Bc4 $18 {[%emt 0:00:44]} b5 {[%emt 0:01:10]} 31. axb6 $1 {[%emt 0:00:06]} Rxb6 {[%emt 0:00:04]} 32. Re2 {[%emt 0:00:09]} Nh5 {[%emt 0:00:59]} 33. e5 {[%emt 0:01:04]} dxe5 $2 {[%emt 0:00:52]} (33... Kh7 34. Rf1 Re7) 34. fxe5 {[%emt 0:00:07]} Rbb8 $2 {[%emt 0:01:17]} (34... f5 {was called for.} 35. Rf1 Rf8) 35. Rf1 {[%emt 0:00:17] Hoping for e6.} Rf8 {[%emt 0:01:01]} 36. d6 {Weighted Error Value: White=0.14 (very precise) /Black=0.38} 1-0

[Event "EYTCC Open U18 2022"]
[Site "Thessaloniki"]
[Date "2022.07.18"]
[Round "7.31"]
[White "Skodras, Marios Konstantinos"]
[Black "Cont, Arya"]
[Result "0-1"]
[ECO "C01"]
[WhiteElo "1446"]
[BlackElo "1968"]
[Annotator "TA"]
[PlyCount "84"]
[EventDate "2022.07.12"]
[EventType "team-tourn"]
[EventCountry "GRE"]
[SourceTitle "playchess.com"]
[Source "ChessBase"]
[SourceQuality "1"]
[WhiteTeam "Greece"]
[BlackTeam "England"]
[WhiteTeamCountry "GRE"]
[BlackTeamCountry "ENG"]
[TimeControl "40/5400+30:1800+30"]

{[%evp 13,84,-8,-4,0,0,-14,-6,0,0,-1,0,0,0,0,1,-14,-10,-10,0,0,0,0,0,-3,-8,-7,23,5,19,-24,-18,-35,-18,-45,-39,-45,-44,-75,-48,-36,-37,-36,-3,-43,0,0,0,-120,-98,-214,-212,-287,-264,-274,-259,-262,-255,-715,-853,-795,-779,-1143,-1079,-1015,-726,-764,-764,-717,-662,-5422,-5406,-5389,-5381]} 1. e4 {[%emt 0:00:04]} e6 {[%emt 0:00:03]} 2. d4 {[%emt 0:00:12]} d5 {[%emt 0:00:03]} 3. exd5 {[%emt 0:00:10]} exd5 {[%emt 0:00:04]} 4. Bd3 {[%emt 0:00:14]} Nc6 {[%emt 0:00:20]} 5. c3 {[%emt 0:00:02]} Bd6 {[%emt 0:00:13]} 6. Nf3 {[%emt 0:00:50]} Nge7 {[%emt 0:00:26]} 7. Bg5 {[%emt 0:02:40][%cal Bc1g5,Bg5h4,Bh4g3][%mdl 32]} Bg4 {[%emt 0:00:13]} 8. Nbd2 {[%emt 0:00:52] C01: French: Exchange Variation.} Qd7 {[%emt 0:01:03]} 9. Qc2 {[%emt 0:00:36]} O-O-O {[%emt 0:00:45]} 10. O-O-O {[%emt 0:00:31] The position is equal.} f6 {[%emt 0:00:22]} 11. Bh4 {[%emt 0:00:47]} Bf5 {[%emt 0:10:55]} 12. Bg3 {[%emt 0:01:12]} Bxd3 {[%emt 0:00:34]} 13. Qxd3 {[%emt 0:00:03]} Nf5 {[%emt 0:02:32]} 14. Rde1 {[%emt 0:00:49]} g6 {[%emt 0:15:17] [#]} 15. Nb3 $146 {[%emt 0:04:01]} ({Predecessor:} 15. Re2 Rde8 16. Rhe1 Rxe2 17. Qxe2 Bxg3 18. hxg3 Nd6 19. Qe3 g5 20. Qe6 Qxe6 21. Rxe6 {0-1 (48) Ocytko,A (2155)-Buraczewski,R (2221) Suwalki 2018}) 15... Rde8 {[%emt 0:04:52]} 16. Bxd6 {[%emt 0:02:41]} Nxd6 {[%emt 0:00:59]} 17. Nfd2 {[%emt 0:01:47]} b6 {[%emt 0:13:04]} 18. Qf3 {[%emt 0:05:07]} Qf7 {[%emt 0:09:24]} 19. Kc2 {[%emt 0:23:50]} f5 {[%emt 0:04:13]} 20. Nc1 {[%emt 0:04:21]} Ne4 {[%emt 0:02:24]} 21. Nxe4 {[%emt 0:01:21]} dxe4 {[%emt 0:00:16]} 22. Qe2 {[%emt 0:00:30]} Qd5 {[%emt 0:02:10]} 23. Rd1 {[%emt 0:01:45]} Rhf8 {[%emt 0:02:52]} 24. Rhf1 {[%emt 0:00:51]} f4 {[%emt 0:02:29]} 25. f3 {[%emt 0:00:34]} Qf5 {[%emt 0:02:56] White must now prevent ...exf3+. Black is much more active.} 26. fxe4 {[%emt 0:01:09]} Rxe4 {[%emt 0:00:03]} 27. Qd3 {[%emt 0:00:43]} Rfe8 {[%emt 0:03:53]} (27... Rd8 {seems wilder.} 28. g4 Qd5 29. Nb3 g5) 28. Kb1 {[%emt 0:01:52]} Kb8 {[%emt 0:01:58]} 29. g3 {[%emt 0:08:07]} g5 {[%emt 0:00:32]} 30. b3 {[%emt 0:11:25] [#]} (30. gxf4 $11 gxf4 31. Nb3) 30... Ne7 $1 $17 {[%emt 0:03:13][%cal Bc6e7,Be7d5,Bd5e3][%mdl 32] Strongly threatening ...Nd5.} 31. g4 {[%emt 0:04:06]} (31. gxf4 $17 gxf4 32. d5) 31... Qg6 $19 {[%emt 0:00:35]} 32. Rfe1 {[%emt 0:03:05]} Nd5 {[%emt 0:00:19]} 33. Rxe4 {[%emt 0:00:39]} Rxe4 {[%emt 0:00:06]} ({Not} 33... Qxe4 34. Qxe4 Rxe4 35. Kc2 $19) 34. Kb2 {[%emt 0:00:25]} Ne3 {[%emt 0:03:50]} 35. Re1 {[%emt 0:00:30] [#]} (35. Rd2) 35... Nc4+ $1 {[%emt 0:01:53][%mdl 512] Black is clearly winning.} 36. Qxc4 {[%emt 0:00:40]} Rxe1 {[%emt 0:00:04][%mdl 4096] Endgame KQR-KQN} 37. Nd3 {[%emt 0:00:17]} Re2+ {[%emt 0:00:12]} 38. Ka3 {[%emt 0:01:54]} Qd6+ {[%emt 0:00:18]} 39. b4 {[%emt 0:00:53]} Qe6 {[%emt 0:00:26]} 40. Qxe6 {[%emt 0:00:00]} Rxe6 {[%emt 0:00:00]} 41. Ne5 {[%emt 0:01:24] [#]} Rxe5 {[%emt 0:00:29][%mdl 512]} 42. dxe5 {[%emt 0:00:01]} f3 {[%emt 0:00:09] Weighted Error Value: White=0.55/Black=0.14 (very precise)} 0-1

[Event "EYTCC Open U18 2022"]
[Site "Thessaloniki"]
[Date "2022.07.18"]
[Round "7.32"]
[White "Dias, Savin"]
[Black "Chasiotis, Odysseas"]
[Result "1-0"]
[ECO "C50"]
[WhiteElo "1894"]
[BlackElo "1371"]
[Annotator "NA COMBH"]
[PlyCount "101"]
[EventDate "2022.07.12"]
[EventType "team-tourn"]
[EventCountry "GRE"]
[SourceTitle "playchess.com"]
[Source "ChessBase"]
[SourceQuality "1"]
[WhiteTeam "England"]
[BlackTeam "Greece"]
[WhiteTeamCountry "ENG"]
[BlackTeamCountry "GRE"]
[TimeControl "40/5400+30:1800+30"]

1. e4 {[%emt 0:00:03]} e5 {[%emt 0:00:05]} 2. Nf3 {[%emt 0:00:03]} Nc6 {[%emt 0:00:08]} 3. Bc4 {[%emt 0:00:03]} Bc5 {[%emt 0:00:15]} 4. O-O {[%emt 0:00:02]} Nf6 {[%emt 0:00:19]} 5. d4 {[%emt 0:00:03]} Nxd4 {[%emt 0:21:53]} 6. Nxe5 {[%emt 0:01:29]} Ne6 {[%emt 0:00:44]} 7. Nc3 {[%emt 0:04:28]} O-O {[%emt 0:01:07]} 8. Na4 {[%emt 0:06:32]} Be7 {[%emt 0:06:50]} 9. Qe2 {[%emt 0:02:40]} d6 {[%emt 0:01:40]} 10. Nf3 {[%emt 0:00:43]} c6 {[%emt 0:01:03]} 11. Nc3 {[%emt 0:00:31]} Nc5 {[%emt 0:01:09]} 12. Nd4 {[%emt 0:05:38]} Bd7 {[%emt 0:02:06]} 13. a4 {[%emt 0:00:49]} Ne6 {[%emt 0:01:34]} 14. Nf5 {[%emt 0:01:12]} Re8 {[%emt 0:07:08]} 15. f3 {[%emt 0:01:25]} Nf8 {[%emt 0:02:50]} 16. Nxe7+ {[%emt 0:00:33]} Qxe7 {[%emt 0:00:32]} 17. Qf2 {[%emt 0:00:24]} Be6 {[%emt 0:01:21]} 18. Bd3 {[%emt 0:01:20]} Ng6 {[%emt 0:00:32]} 19. f4 {[%emt 0:01:50]} Bd7 {[%emt 0:05:04]} 20. h3 {[%emt 0:00:40]} c5 {[%emt 0:05:34]} 21. Nd5 {[%emt 0:00:55]} Nxd5 {[%emt 0:00:22]} 22. exd5 {[%emt 0:00:04]} f5 {[%emt 0:02:26]} 23. Bd2 {[%emt 0:00:56]} Qf7 {[%emt 0:01:00]} 24. c4 {[%emt 0:00:29]} a5 {[%emt 0:00:32]} 25. g3 {[%emt 0:01:20]} h5 {[%emt 0:03:42]} 26. Be2 {[%emt 0:02:21]} Nf8 {[%emt 0:00:24]} 27. Bf3 {[%emt 0:00:42]} Nh7 {[%emt 0:00:52]} 28. Bc3 {[%emt 0:03:00]} g6 {[%emt 0:02:45]} 29. b3 {[%emt 0:05:46]} Nf6 {[%emt 0:00:40]} 30. Rae1 {[%emt 0:02:30]} b6 {[%emt 0:03:02]} 31. Ba1 {[%emt 0:00:31]} Rxe1 {[%emt 0:02:15]} 32. Rxe1 {[%emt 0:00:04]} Qg7 {[%emt 0:02:09]} 33. Qb2 {[%emt 0:00:41]} Kf7 {[%emt 0:00:35]} 34. Re6 {[%emt 0:02:33]} Bxe6 {[%emt 0:11:01]} 35. dxe6+ {[%emt 0:00:04]} Kxe6 {[%emt 0:00:23]} 36. Bxa8 {[%emt 0:00:25]} Qf8 {[%emt 0:03:03]} 37. Qg2 {[%emt 0:00:57]} Qd8 {[%emt 0:02:18]} 38. Bc6 {[%emt 0:01:07]} Qf8 {[%emt 0:00:30]} 39. Qe2+ {[%emt 0:00:13]} Kf7 {[%emt 0:00:23]} 40. Bd5+ {[%emt 0:00:00]} Nxd5 {[%emt 0:00:00]} 41. cxd5 {[%emt 0:00:47]} Qe7 {[%emt 0:01:06]} 42. Qxe7+ {[%emt 0:00:07]} Kxe7 {[%emt 0:00:15]} 43. g4 {[%emt 0:00:16]} hxg4 {[%emt 0:02:43]} 44. hxg4 {[%emt 0:00:04]} Kf7 {[%emt 0:10:42]} 45. gxf5 {[%emt 0:00:19]} gxf5 {[%emt 0:00:20]} 46. Kf2 {[%emt 0:00:02]} Kg6 {[%emt 0:00:36]} 47. Kg3 {[%emt 0:00:03]} Kf7 {[%emt 0:00:16]} 48. Kh4 {[%emt 0:00:02]} Kg6 {[%emt 0:00:11]} 49. Bc3 {[%emt 0:00:05]} Kh6 {[%emt 0:00:29]} 50. Bf6 {[%emt 0:00:04]} Kg6 {[%emt 0:00:19]} 51. Be7 {[%emt 0:00:04]} 1-0

[Event "EYTCC Open U18 2022"]
[Site "Thessaloniki"]
[Date "2022.07.18"]
[Round "7.33"]
[White "Betsakou, Sofia"]
[Black "Risteski, Emil"]
[Result "0-1"]
[ECO "A41"]
[WhiteElo "1412"]
[BlackElo "2405"]
[Annotator "TA"]
[PlyCount "90"]
[EventDate "2022.07.12"]
[EventType "team-tourn"]
[EventCountry "GRE"]
[SourceTitle "playchess.com"]
[Source "ChessBase"]
[SourceQuality "1"]
[WhiteTeam "Greece"]
[BlackTeam "Macedonia"]
[WhiteTeamCountry "GRE"]
[BlackTeamCountry "MKD"]
[TimeControl "40/5400+30:1800+30"]

{[%evp 12,90,23,21,42,42,45,28,38,19,41,32,25,3,24,0,0,0,0,0,0,0,0,-24,-25,-23,-18,-64,-48,-66,-51,-68,-61,-58,-61,-90,-90,-75,-81,-111,-138,-132,-115,-144,-121,-240,-241,-256,-218,-269,-288,-240,-64,-73,-16,-26,-24,-54,-47,-98,-20,-146,-166,-157,-139,-234,-218,-207,-202,-595,-583,-553,-355,-384,-370,-437,-439,-405,-397,-29964,-6287]} 1. d4 {[%emt 0:00:03]} d6 {[%emt 0:00:15]} 2. Nf3 {[%emt 0:00:08]} Nf6 {[%emt 0:00:10]} 3. Nc3 {[%emt 0:00:27]} Nbd7 {[%emt 0:00:12]} 4. g3 {[%emt 0:00:26]} e5 {[%emt 0:00:22]} 5. e4 {[%emt 0:00:37]} Be7 {[%emt 0:02:14]} 6. Bg2 {[%emt 0:00:37]} O-O {[%emt 0:00:10]} 7. O-O {[%emt 0:00:20]} Re8 {[%emt 0:01:05] C41: Philidor Defence.} 8. Re1 {[%emt 0:03:02]} Bf8 {[%emt 0:01:40]} 9. h3 {[%emt 0:01:56]} g6 {[%emt 0:05:40] [#] White has an edge.} 10. Be3 $146 {[%emt 0:06:25]} ({Predecessor:} 10. Bg5 h6 11. Be3 Bg7 12. dxe5 Nxe5 13. Nd2 Bd7 14. f4 Nc6 15. Bf2 Qc8 16. Kh2 {½-½ (40) Rentschler,H-Schmid,W (2240) Germany 1990}) 10... b6 {[%emt 0:03:08]} 11. Qd2 {[%emt 0:02:53]} Bb7 12. Bg5 c6 {[%emt 0:02:36]} 13. a4 {[%emt 0:02:09]} a6 {[%emt 0:00:49]} 14. Rad1 {[%emt 0:04:33][%cal Of3e5]} Qc7 {[%emt 0:01:32]} 15. b3 {[%emt 0:02:53]} b5 {[%emt 0:00:56]} 16. dxe5 {[%emt 0:03:46]} dxe5 {[%emt 0:00:14]} 17. Qe2 {[%emt 0:06:47]} h6 {[%emt 0:02:58]} 18. Bc1 {[%emt 0:00:52]} Kh7 {[%emt 0:01:11]} 19. Rd3 {[%emt 0:03:34]} (19. Qe3 $11 {deserves consideration.}) 19... Nc5 {[%emt 0:01:49][%cal Bd7c5,Bc5e6,Be6d4][%mdl 32]} (19... b4 $5 {[%cal Rb4c3]} 20. Nb1 a5 $15) 20. Re3 {[%emt 0:02:41]} Rad8 {[%emt 0:01:56]} 21. Bb2 {[%emt 0:04:40]} Ne6 {[%emt 0:02:20]} 22. Rd3 {[%emt 0:04:15]} Nd4 {[%emt 0:00:13]} 23. Qd1 {[%emt 0:01:15][%cal Rf3d4]} c5 {[%emt 0:07:43] Black is more active.} 24. axb5 {[%emt 0:09:34]} axb5 {[%emt 0:00:19]} 25. Nxd4 {[%emt 0:03:33]} cxd4 {[%emt 0:05:50]} 26. Nxb5 {[%emt 0:03:32]} Qb6 {[%emt 0:01:25]} 27. Na3 {[%emt 0:05:05]} Ba6 {[%emt 0:00:46]} 28. f4 {[%emt 0:06:24]} Bxd3 $19 {[%emt 0:04:17]} 29. Qxd3 {[%emt 0:00:29]} exf4 {[%emt 0:01:14]} 30. gxf4 {[%emt 0:00:15]} Qa5 {[%emt 0:02:38]} 31. Ra1 {[%emt 0:01:20]} Qc7 {[%emt 0:00:14]} (31... Bxa3 $19 32. Bxa3 Nh5) 32. Rf1 $15 {[%emt 0:03:24]} Nd7 {[%emt 0:04:45]} (32... Nh5 $17 {Threatens to win with ...Bxa3.} 33. Nb5 Qb6) 33. Nb5 $11 {[%emt 0:07:20]} ({But not} 33. Qxd4 $2 Bc5 34. Kh1 Bxd4 $19) 33... Qb6 {[%emt 0:00:42]} 34. Bxd4 {[%emt 0:03:17]} Bc5 $36 {[%emt 0:00:10][%mdl 2048] Black is more active.} 35. Qc4 {[%emt 0:03:18]} (35. c3 $15) 35... Kg8 {[%emt 0:06:04]} ({Black should play} 35... Bxd4+ $17 36. Nxd4 Kg7) 36. Kh1 {[%emt 0:01:12] [#]} (36. Bxc5 $1 $11 {was the only way to keep the balance.} Nxc5 37. Kh1) 36... Bxd4 $1 $17 {[%emt 0:00:54]} 37. Nxd4 {[%emt 0:00:14]} Nf6 {[%emt 0:00:23][%csl LRd4,LRe4][%cal Bd7f6,Bf6h5,Bh5g3,Bg3e2][%mdl 32]} 38. Ne2 {[%emt 0:02:15]} (38. Nc6 $17 Nh5 39. Qc3) 38... Qe3 {[%emt 0:01:33]} 39. e5 {[%emt 0:01:33]} Rd2 {[%emt 0:01:49]} 40. Bf3 {[%emt 0:00:00] [#]} (40. f5 g5 41. e6 fxe6 42. Bf3) 40... Nh5 $1 $19 {[%emt 0:00:00]} 41. b4 {[%emt 0:12:13] [#]} Rxe2 $1 {[%emt 0:05:47][%mdl 576] Decoy} 42. Bxe2 {[%emt 0:02:16]} Ng3+ {[%emt 0:00:33]} 43. Kg2 Nxe2 {[%emt 0:01:58]} 44. Rf2 {[%emt 0:05:48]} Nd4 {[%emt 0:00:21] ...Qe4+ is the strong threat.} ({Wrong is} 44... Qg3+ $2 45. Kf1 Nc1 46. Qe4 $19) 45. b5 $2 {[%emt 0:02:09]} (45. Qd3 $19 Qxd3 46. cxd3) 45... Qe4+ {Weighted Error Value: White=0.48/Black=0.20 (precise)} 0-1